[Event "Early-Titled-Tuesday-Blitz-October-10-2023"]
[Site "Chess.com"]
[Date "2023.10.10"]
[Round "3"]
[White "SlavenPastar"]
[Black "Elprofessor21"]
[Result "1/2-1/2"]
[WhiteElo "2568"]
[BlackElo "2776"]
[TimeControl "180+1"]
[EndTime "8:29:25 PDT"]
[Termination "Game drawn - insufficient material"]

1. b3 {[%clk 0:03:00.9]} 1... c5 {[%clk 0:02:58.9]} 2. Bb2 {[%clk 0:03:01.4]}
2... Nc6 {[%clk 0:02:59.5]} 3. Nf3 {[%clk 0:03:02]} 3... Nf6 {[%clk 0:02:59.7]}
4. e3 {[%clk 0:03:02.7]} 4... g6 {[%clk 0:03:00]} 5. Be2 {[%clk 0:03:01.2]} 5...
Bg7 {[%clk 0:03:00.1]} 6. O-O {[%clk 0:03:01.8]} 6... O-O {[%clk 0:03:00.4]} 7.
c4 {[%clk 0:03:02.5]} 7... d6 {[%clk 0:02:56.3]} 8. d4 {[%clk 0:03:02.6]} 8...
Bg4 {[%clk 0:02:52.8]} 9. d5 {[%clk 0:03:02.5]} 9... Bxf3 {[%clk 0:02:52.4]} 10.
Bxf3 {[%clk 0:03:01.3]} 10... Ne5 {[%clk 0:02:52.4]} 11. Be2 {[%clk 0:03:02]}
11... Ne8 {[%clk 0:02:51.2]} 12. Qc2 {[%clk 0:03:01]} 12... a6 {[%clk
0:02:37.1]} 13. Nd2 {[%clk 0:02:57.1]} 13... Nc7 {[%clk 0:02:36.3]} 14. f4
{[%clk 0:02:52.5]} 14... Nd7 {[%clk 0:02:35.8]} 15. Bxg7 {[%clk 0:02:53.1]}
15... Kxg7 {[%clk 0:02:36.7]} 16. e4 {[%clk 0:02:52.6]} 16... e5 {[%clk
0:02:14.5]} 17. dxe6 {[%clk 0:02:45]} 17... Nxe6 {[%clk 0:02:12.8]} 18. Rad1
{[%clk 0:02:39.2]} 18... Nd4 {[%clk 0:02:11.7]} 19. Qd3 {[%clk 0:02:33.3]} 19...
Nb8 {[%clk 0:02:08.8]} 20. Bf3 {[%clk 0:02:17.3]} 20... Nbc6 {[%clk 0:02:02.5]}
21. e5 {[%clk 0:01:30.3]} 21... dxe5 {[%clk 0:01:57.5]} 22. Bxc6 {[%clk
0:01:23.5]} 22... Nxc6 {[%clk 0:01:53.9]} 23. Ne4 {[%clk 0:01:23.3]} 23... Qd4+
{[%clk 0:01:12.8]} 24. Qxd4 {[%clk 0:01:19.5]} 24... cxd4 {[%clk 0:01:13.2]} 25.
fxe5 {[%clk 0:01:19.1]} 25... Rae8 {[%clk 0:01:13.8]} 26. Nf6 {[%clk 0:00:50.6]}
26... Re7 {[%clk 0:01:12.7]} 27. b4 {[%clk 0:00:24.7]} 27... Rd8 {[%clk
0:01:08.6]} 28. b5 {[%clk 0:00:24.2]} 28... axb5 {[%clk 0:01:05.2]} 29. cxb5
{[%clk 0:00:22.7]} 29... Nxe5 {[%clk 0:01:05.5]} 30. g4 {[%clk 0:00:16.7]} 30...
Nc4 {[%clk 0:01:03.2]} 31. Rd3 {[%clk 0:00:13.7]} 31... Ne3 {[%clk 0:01:01.9]}
32. Rf3 {[%clk 0:00:13.7]} 32... Rd6 {[%clk 0:00:47.2]} 33. g5 {[%clk
0:00:13.3]} 33... Re5 {[%clk 0:00:45.1]} 34. h4 {[%clk 0:00:12.3]} 34... h6
{[%clk 0:00:45.5]} 35. gxh6+ {[%clk 0:00:08.6]} 35... Kxh6 {[%clk 0:00:21.4]}
36. Rfxe3 {[%clk 0:00:07.2]} 36... Rxb5 {[%clk 0:00:11.7]} 37. Rf3 {[%clk
0:00:07.5]} 37... Rb1+ {[%clk 0:00:11.3]} 38. Kg2 {[%clk 0:00:07.8]} 38... Rb2+
{[%clk 0:00:11.8]} 39. Kg3 {[%clk 0:00:08.3]} 39... Rxa2 {[%clk 0:00:12.1]} 40.
Ne8 {[%clk 0:00:06.5]} 40... Rd7 {[%clk 0:00:11]} 41. Nf6 {[%clk 0:00:06.2]}
41... Rd6 {[%clk 0:00:11.5]} 42. Ne4 {[%clk 0:00:05.2]} 42... Rd7 {[%clk
0:00:10.8]} 43. Ng5 {[%clk 0:00:05.4]} 43... f5 {[%clk 0:00:11.4]} 44. Ne6
{[%clk 0:00:04.4]} 44... Ra4 {[%clk 0:00:11]} 45. Rf4 {[%clk 0:00:04.2]} 45...
Re7 {[%clk 0:00:11.5]} 46. Nxd4 {[%clk 0:00:03.4]} 46... Ra1 {[%clk 0:00:11.8]}
47. Nf3 {[%clk 0:00:03.1]} 47... b5 {[%clk 0:00:08.2]} 48. Rd8 {[%clk
0:00:03.3]} 48... Kg7 {[%clk 0:00:08]} 49. Rfd4 {[%clk 0:00:02.5]} 49... Raa7
{[%clk 0:00:06.9]} 50. Rd3 {[%clk 0:00:02.8]} 50... Rab7 {[%clk 0:00:07.1]} 51.
Rb3 {[%clk 0:00:02.4]} 51... b4 {[%clk 0:00:07.8]} 52. Rd4 {[%clk 0:00:03]}
52... Re4 {[%clk 0:00:07.8]} 53. Rxe4 {[%clk 0:00:03.1]} 53... fxe4 {[%clk
0:00:08.7]} 54. Ng5 {[%clk 0:00:03.8]} 54... e3 {[%clk 0:00:07.7]} 55. Kf3
{[%clk 0:00:04.3]} 55... Kf6 {[%clk 0:00:07.8]} 56. Kxe3 {[%clk 0:00:04.7]}
56... Kf5 {[%clk 0:00:08.5]} 57. Kd4 {[%clk 0:00:04.5]} 57... Kg4 {[%clk
0:00:07.9]} 58. Kc5 {[%clk 0:00:04.7]} 58... Kxh4 {[%clk 0:00:08.2]} 59. Ne6
{[%clk 0:00:05.1]} 59... g5 {[%clk 0:00:08]} 60. Rxb4+ {[%clk 0:00:04.5]} 60...
Rxb4 {[%clk 0:00:07.7]} 61. Kxb4 {[%clk 0:00:05.4]} 61... g4 {[%clk 0:00:08.4]}
62. Kc3 {[%clk 0:00:06]} 62... g3 {[%clk 0:00:08.3]} 63. Nf4 {[%clk 0:00:06.4]}
63... Kg4 {[%clk 0:00:09]} 64. Ng2 {[%clk 0:00:06.5]} 64... Kf3 {[%clk
0:00:09.2]} 65. Nh4+ {[%clk 0:00:07]} 65... Kg4 {[%clk 0:00:09.6]} 66. Ng2
{[%clk 0:00:07.4]} 66... Kh3 {[%clk 0:00:09.2]} 67. Nf4+ {[%clk 0:00:07.7]}
67... Kh2 {[%clk 0:00:09.1]} 68. Kd2 {[%clk 0:00:07.7]} 68... Kh1 {[%clk
0:00:08.3]} 69. Ke2 {[%clk 0:00:07.8]} 69... g2 {[%clk 0:00:08.6]} 70. Nxg2
{[%clk 0:00:07.9]} 1/2-1/2

[Event "Early-Titled-Tuesday-Blitz-October-10-2023"]
[Site "Chess.com"]
[Date "2023.10.10"]
[Round "3"]
[White "Ali_rastbod"]
[Black "Baku_Boulevard"]
[Result "1-0"]
[WhiteElo "2736"]
[BlackElo "3047"]
[TimeControl "180+1"]
[EndTime "8:29:27 PDT"]
[Termination "Ali_rastbod won by resignation"]

1. d4 {[%clk 0:03:00.9]} 1... Nf6 {[%clk 0:02:59.5]} 2. Bg5 {[%clk 0:03:01.1]}
2... g6 {[%clk 0:02:56.8]} 3. Bxf6 {[%clk 0:03:00.7]} 3... exf6 {[%clk
0:02:57.7]} 4. e3 {[%clk 0:03:01.1]} 4... f5 {[%clk 0:02:58.3]} 5. g3 {[%clk
0:02:59.9]} 5... Bg7 {[%clk 0:02:58.5]} 6. Bg2 {[%clk 0:03:00.1]} 6... d6 {[%clk
0:02:59.1]} 7. Ne2 {[%clk 0:03:00.3]} 7... Nd7 {[%clk 0:02:57.9]} 8. c4 {[%clk
0:03:00.4]} 8... Nf6 {[%clk 0:02:57.9]} 9. Nbc3 {[%clk 0:03:01]} 9... h5 {[%clk
0:02:58]} 10. h4 {[%clk 0:03:00.9]} 10... O-O {[%clk 0:02:58.1]} 11. Qd3 {[%clk
0:03:01.6]} 11... Re8 {[%clk 0:02:58.2]} 12. Nf4 {[%clk 0:03:01.8]} 12... c6
{[%clk 0:02:58.1]} 13. O-O {[%clk 0:03:00.9]} 13... Ng4 {[%clk 0:02:57.8]} 14.
Nh3 {[%clk 0:02:57.9]} 14... Bh6 {[%clk 0:02:57.2]} 15. Rae1 {[%clk 0:02:40.2]}
15... Bd7 {[%clk 0:02:50.9]} 16. b4 {[%clk 0:02:37.6]} 16... a6 {[%clk
0:02:46.4]} 17. a3 {[%clk 0:02:35.6]} 17... Rc8 {[%clk 0:02:28.8]} 18. Nd1
{[%clk 0:02:34.4]} 18... b5 {[%clk 0:02:28.5]} 19. c5 {[%clk 0:01:41.2]} 19...
d5 {[%clk 0:02:23.8]} 20. f3 {[%clk 0:01:41.6]} 20... Nf6 {[%clk 0:02:23.5]} 21.
Ng5 {[%clk 0:01:41.7]} 21... a5 {[%clk 0:02:18.5]} 22. Nf2 {[%clk 0:01:33]}
22... axb4 {[%clk 0:02:07.9]} 23. axb4 {[%clk 0:01:33.9]} 23... Ra8 {[%clk
0:02:08.1]} 24. Ra1 {[%clk 0:01:34]} 24... Qe7 {[%clk 0:02:06.2]} 25. Rxa8
{[%clk 0:01:30.2]} 25... Rxa8 {[%clk 0:02:06.2]} 26. Qc3 {[%clk 0:01:18.2]}
26... Nh7 {[%clk 0:01:58.6]} 27. Nxh7 {[%clk 0:01:18.3]} 27... Kxh7 {[%clk
0:01:58.4]} 28. f4 {[%clk 0:01:18.6]} 28... f6 {[%clk 0:01:49.3]} 29. Nh3 {[%clk
0:01:02]} 29... Ra4 {[%clk 0:01:41.8]} 30. Kf2 {[%clk 0:00:59.2]} 30... Bc8
{[%clk 0:01:38.2]} 31. Ra1 {[%clk 0:00:56.3]} 31... Qa7 {[%clk 0:01:38.2]} 32.
Rxa4 {[%clk 0:00:56.1]} 32... bxa4 {[%clk 0:01:39.1]} 33. Qa3 {[%clk 0:00:54.7]}
33... Bf8 {[%clk 0:01:11.5]} 34. Bf1 {[%clk 0:00:53.1]} 34... Kh6 {[%clk
0:01:11.8]} 35. Bd3 {[%clk 0:00:45.3]} 35... Be7 {[%clk 0:01:09.5]} 36. Be2
{[%clk 0:00:38.2]} 36... Bd8 {[%clk 0:01:08.6]} 37. Bd3 {[%clk 0:00:35.4]} 37...
Bc7 {[%clk 0:01:08.5]} 38. Ng1 {[%clk 0:00:35.6]} 38... Bb8 {[%clk 0:01:08.1]}
39. Nf3 {[%clk 0:00:33.1]} 39... Ba6 {[%clk 0:01:07.5]} 40. Ne1 {[%clk
0:00:16.5]} 40... Bb5 {[%clk 0:01:06.1]} 41. Bxb5 {[%clk 0:00:16]} 41... cxb5
{[%clk 0:01:07]} 42. Nf3 {[%clk 0:00:12.7]} 42... Qa6 {[%clk 0:01:07.1]} 43. Nd2
{[%clk 0:00:12.5]} 43... Qc6 {[%clk 0:01:06.7]} 44. Nb1 {[%clk 0:00:11.9]} 44...
g5 {[%clk 0:01:05]} 45. hxg5+ {[%clk 0:00:12.3]} 45... fxg5 {[%clk 0:01:05.2]}
46. Nc3 {[%clk 0:00:12.8]} 46... h4 {[%clk 0:01:05.7]} 47. fxg5+ {[%clk
0:00:12.5]} 47... Kxg5 {[%clk 0:01:05.1]} 48. gxh4+ {[%clk 0:00:13.1]} 48...
Kxh4 {[%clk 0:01:01.2]} 49. Qa1 {[%clk 0:00:09.7]} 49... Bg3+ {[%clk 0:00:56.7]}
50. Kf3 {[%clk 0:00:07.6]} 50... Bb8 {[%clk 0:00:48.4]} 51. Qh1+ {[%clk
0:00:07]} 51... Kg5 {[%clk 0:00:48.9]} 52. Qg1+ {[%clk 0:00:05.5]} 52... Kf6
{[%clk 0:00:48.4]} 53. Qg8 {[%clk 0:00:06.1]} 53... Ke7 {[%clk 0:00:24.6]} 54.
Nxd5+ {[%clk 0:00:06.2]} 54... Kd7 {[%clk 0:00:24.5]} 55. e4 {[%clk 0:00:06.6]}
55... fxe4+ {[%clk 0:00:24.3]} 56. Kxe4 {[%clk 0:00:07.5]} 56... Bh2 {[%clk
0:00:23]} 57. Qh7+ {[%clk 0:00:06.9]} 57... Kd8 {[%clk 0:00:18.8]} 58. Qh4+
{[%clk 0:00:06.5]} 58... Kd7 {[%clk 0:00:17.5]} 59. Qxh2 {[%clk 0:00:06.7]}
59... Qg6+ {[%clk 0:00:17.7]} 60. Ke3 {[%clk 0:00:05.5]} 60... Qg5+ {[%clk
0:00:18.2]} 61. Nf4 {[%clk 0:00:06]} 61... a3 {[%clk 0:00:18.3]} 62. Qh7+ {[%clk
0:00:06.2]} 62... Kd8 {[%clk 0:00:18.7]} 63. Qa7 {[%clk 0:00:04.7]} 63... Qg1+
{[%clk 0:00:17.2]} 64. Ke4 {[%clk 0:00:05.3]} 64... Qh1+ {[%clk 0:00:17.7]} 65.
Ke5 {[%clk 0:00:05.1]} 65... Qh8+ {[%clk 0:00:18]} 66. Kd5 {[%clk 0:00:05]}
66... Qh1+ {[%clk 0:00:16.7]} 67. Kd6 {[%clk 0:00:04.4]} 1-0

[Event "Early-Titled-Tuesday-Blitz-October-10-2023"]
[Site "Chess.com"]
[Date "2023.10.10"]
[Round "3"]
[White "Alenzer"]
[Black "queen_iryna"]
[Result "1-0"]
[WhiteElo "2113"]
[BlackElo "2341"]
[TimeControl "180+1"]
[EndTime "8:29:33 PDT"]
[Termination "Alenzer won by checkmate"]

1. e4 {[%clk 0:02:59.8]} 1... d6 {[%clk 0:03:00.9]} 2. d4 {[%clk 0:02:57.8]}
2... Nf6 {[%clk 0:03:00.9]} 3. Nc3 {[%clk 0:02:57.5]} 3... e5 {[%clk 0:03:01]}
4. dxe5 {[%clk 0:02:57.3]} 4... dxe5 {[%clk 0:03:01.9]} 5. Qxd8+ {[%clk
0:02:57]} 5... Kxd8 {[%clk 0:03:02.8]} 6. f3 {[%clk 0:02:56.3]} 6... Bb4 {[%clk
0:03:01.9]} 7. Bd2 {[%clk 0:02:55.8]} 7... Be6 {[%clk 0:03:01.7]} 8. O-O-O
{[%clk 0:02:56]} 8... Nbd7 {[%clk 0:03:01.8]} 9. a3 {[%clk 0:02:55.9]} 9... Bc5
{[%clk 0:03:00.4]} 10. g4 {[%clk 0:02:52.7]} 10... h6 {[%clk 0:02:59.7]} 11.
Nge2 {[%clk 0:02:51.9]} 11... c6 {[%clk 0:02:59.1]} 12. Ng3 {[%clk 0:02:51.6]}
12... a5 {[%clk 0:02:56.7]} 13. Nf5 {[%clk 0:02:49.7]} 13... g6 {[%clk
0:01:34.5]} 14. Nxh6 {[%clk 0:02:38.8]} 14... Kc7 {[%clk 0:01:34.1]} 15. g5
{[%clk 0:02:29.3]} 15... Nh5 {[%clk 0:01:32.3]} 16. h4 {[%clk 0:02:26.9]} 16...
b5 {[%clk 0:01:26.6]} 17. Bh3 {[%clk 0:02:17.4]} 17... Rhf8 {[%clk 0:01:03]} 18.
Ng4 {[%clk 0:01:46.6]} 18... Nf4 {[%clk 0:00:59.5]} 19. Bxf4 {[%clk 0:01:42.8]}
19... exf4 {[%clk 0:01:00.4]} 20. Ne2 {[%clk 0:01:34.2]} 20... Bxg4 {[%clk
0:00:57.5]} 21. Bxg4 {[%clk 0:01:33.8]} 21... Ne5 {[%clk 0:00:57.9]} 22. Kb1
{[%clk 0:01:18.1]} 22... Be3 {[%clk 0:00:56.7]} 23. h5 {[%clk 0:01:13]} 23...
Rfb8 {[%clk 0:00:48]} 24. h6 {[%clk 0:01:09.5]} 24... a4 {[%clk 0:00:47]} 25. c3
{[%clk 0:00:54.6]} 25... Nxg4 {[%clk 0:00:38.3]} 26. fxg4 {[%clk 0:00:54.6]}
26... f3 {[%clk 0:00:39.2]} 27. Ng3 {[%clk 0:00:49.1]} 27... Bxg5 {[%clk
0:00:38.9]} 28. h7 {[%clk 0:00:45.1]} 28... Rh8 {[%clk 0:00:38]} 29. Rdf1 {[%clk
0:00:40.6]} 29... Rad8 {[%clk 0:00:30.2]} 30. Rxf3 {[%clk 0:00:40.4]} 30... f6
{[%clk 0:00:30.9]} 31. e5 {[%clk 0:00:37.3]} 31... fxe5 {[%clk 0:00:28.8]} 32.
Rf7+ {[%clk 0:00:36.8]} 32... Rd7 {[%clk 0:00:29.4]} 33. Rhf1 {[%clk 0:00:27]}
33... Rxh7 {[%clk 0:00:27.7]} 34. Rxh7 {[%clk 0:00:27.1]} 34... Rxh7 {[%clk
0:00:27.8]} 35. Ne4 {[%clk 0:00:27.8]} 35... Be7 {[%clk 0:00:27.6]} 36. Rf2
{[%clk 0:00:19.2]} 36... Kd7 {[%clk 0:00:27.7]} 37. Kc2 {[%clk 0:00:19.1]} 37...
Ke6 {[%clk 0:00:27.8]} 38. Nd2 {[%clk 0:00:15.4]} 38... Rh4 {[%clk 0:00:27.2]}
39. Rg2 {[%clk 0:00:14.9]} 39... Kd5 {[%clk 0:00:24]} 40. Nf3 {[%clk 0:00:14.8]}
40... Rh3 {[%clk 0:00:22.2]} 41. Ng1 {[%clk 0:00:12.2]} 41... Re3 {[%clk
0:00:18.7]} 42. Kd2 {[%clk 0:00:10.8]} 42... Re4 {[%clk 0:00:17.9]} 43. g5
{[%clk 0:00:11.1]} 43... Rf4 {[%clk 0:00:16.2]} 44. Ne2 {[%clk 0:00:11.4]} 44...
Rf5 {[%clk 0:00:15.4]} 45. Ke3 {[%clk 0:00:05.9]} 45... Bxg5+ {[%clk 0:00:14.8]}
46. Kd3 {[%clk 0:00:06.3]} 46... Rf3+ {[%clk 0:00:13.9]} 47. Kc2 {[%clk
0:00:06.7]} 47... Rf5 {[%clk 0:00:13.8]} 48. Ng3 {[%clk 0:00:05.6]} 48... Rf1
{[%clk 0:00:11.2]} 49. Nxf1 {[%clk 0:00:04.9]} 49... Bf4 {[%clk 0:00:09.9]} 50.
Rxg6 {[%clk 0:00:05.1]} 50... c5 {[%clk 0:00:10.4]} 51. Rg8 {[%clk 0:00:05.5]}
51... Ke4 {[%clk 0:00:10.2]} 52. Kd1 {[%clk 0:00:05.3]} 52... Kd3 {[%clk
0:00:09.6]} 53. Rd8+ {[%clk 0:00:05.2]} 53... Kc4 {[%clk 0:00:09.9]} 54. Re8
{[%clk 0:00:05]} 54... Kb3 {[%clk 0:00:09.4]} 55. Nd2+ {[%clk 0:00:04.4]} 55...
Kxb2 {[%clk 0:00:08.8]} 56. c4 {[%clk 0:00:04.1]} 56... bxc4 {[%clk 0:00:05.8]}
57. Nxc4+ {[%clk 0:00:04.4]} 57... Kb3 {[%clk 0:00:06.5]} 58. Nxe5 {[%clk
0:00:04.6]} 58... Bxe5 {[%clk 0:00:05.8]} 59. Rxe5 {[%clk 0:00:04.3]} 59... Kxa3
{[%clk 0:00:06.7]} 60. Kc2 {[%clk 0:00:04.5]} 60... c4 {[%clk 0:00:06]} 61. Rc5
{[%clk 0:00:04.5]} 61... Kb4 {[%clk 0:00:06.1]} 62. Rc8 {[%clk 0:00:04.7]} 62...
Ka3 {[%clk 0:00:05.9]} 63. Rxc4 {[%clk 0:00:03.5]} 63... Ka2 {[%clk 0:00:04.9]}
64. Rxa4# {[%clk 0:00:04]} 1-0

[Event "Early-Titled-Tuesday-Blitz-October-10-2023"]
[Site "Chess.com"]
[Date "2023.10.10"]
[Round "3"]
[White "Savagelittlemole"]
[Black "Xqswdc"]
[Result "1/2-1/2"]
[WhiteElo "2565"]
[BlackElo "2337"]
[TimeControl "180+1"]
[EndTime "8:29:34 PDT"]
[Termination "Game drawn - insufficient material"]

1. e4 {[%clk 0:03:00.9]} 1... g6 {[%clk 0:02:55.1]} 2. d4 {[%clk 0:03:00.2]}
2... Bg7 {[%clk 0:02:54.2]} 3. h4 {[%clk 0:03:00.1]} 3... h6 {[%clk 0:02:50.3]}
4. Be3 {[%clk 0:02:59.5]} 4... d5 {[%clk 0:02:48.5]} 5. e5 {[%clk 0:02:58.1]}
5... h5 {[%clk 0:02:47.7]} 6. Nh3 {[%clk 0:02:55.3]} 6... Nh6 {[%clk 0:02:46.6]}
7. Ng5 {[%clk 0:02:51.4]} 7... Nf5 {[%clk 0:02:46.4]} 8. Bd3 {[%clk 0:02:34.9]}
8... Nxe3 {[%clk 0:02:39.2]} 9. fxe3 {[%clk 0:02:34.6]} 9... Bg4 {[%clk
0:02:39.9]} 10. Qd2 {[%clk 0:02:25.5]} 10... Qd7 {[%clk 0:02:36.9]} 11. O-O
{[%clk 0:02:19.1]} 11... Rf8 {[%clk 0:02:33]} 12. Nc3 {[%clk 0:02:12.7]} 12...
Nc6 {[%clk 0:02:32.6]} 13. Ne2 {[%clk 0:01:55.9]} 13... O-O-O {[%clk 0:02:27.2]}
14. Nxf7 {[%clk 0:01:47.3]} 14... Rde8 {[%clk 0:02:11.2]} 15. Bxg6 {[%clk
0:01:45.7]} 15... Rg8 {[%clk 0:01:59.1]} 16. Ng5 {[%clk 0:01:39.3]} 16... Ref8
{[%clk 0:01:58.1]} 17. Nf4 {[%clk 0:01:32.6]} 17... Kb8 {[%clk 0:01:35.6]} 18.
e6 {[%clk 0:01:26.4]} 18... Qd6 {[%clk 0:01:23.7]} 19. Bf7 {[%clk 0:01:05.1]}
19... Rh8 {[%clk 0:01:00.1]} 20. Ng6 {[%clk 0:01:03.8]} 20... Qg3 {[%clk
0:00:54.3]} 21. Qf2 {[%clk 0:00:57.4]} 21... Qd6 {[%clk 0:00:52.3]} 22. Nxh8
{[%clk 0:00:51.6]} 22... Bxh8 {[%clk 0:00:52.2]} 23. Qf4 {[%clk 0:00:51.3]}
23... Qb4 {[%clk 0:00:51]} 24. c3 {[%clk 0:00:41.2]} 24... Qxb2 {[%clk
0:00:49.9]} 25. Rab1 {[%clk 0:00:41.5]} 25... Qxc3 {[%clk 0:00:48.4]} 26. Rfc1
{[%clk 0:00:41.4]} 26... Qd3 {[%clk 0:00:43.8]} 27. Rb3 {[%clk 0:00:36.7]} 27...
Qa6 {[%clk 0:00:30.5]} 28. Nf3 {[%clk 0:00:20.5]} 28... Bf6 {[%clk 0:00:28.9]}
29. Ng5 {[%clk 0:00:18.1]} 29... Rc8 {[%clk 0:00:23.2]} 30. Qf1 {[%clk
0:00:14.3]} 30... Qa4 {[%clk 0:00:20.6]} 31. Qb5 {[%clk 0:00:12.4]} 31... Qxb5
{[%clk 0:00:20.4]} 32. Rxb5 {[%clk 0:00:13.3]} 32... Ka8 {[%clk 0:00:20]} 33.
Rcb1 {[%clk 0:00:12.4]} 33... b6 {[%clk 0:00:19.6]} 34. Rc1 {[%clk 0:00:12.1]}
34... Kb7 {[%clk 0:00:18.9]} 35. Rb2 {[%clk 0:00:10.6]} 35... Na5 {[%clk
0:00:19.3]} 36. Rf2 {[%clk 0:00:07.7]} 36... Nc4 {[%clk 0:00:19.7]} 37. Rxf6
{[%clk 0:00:07.6]} 37... exf6 {[%clk 0:00:18.5]} 38. e7 {[%clk 0:00:08]} 38...
Nd6 {[%clk 0:00:18.9]} 39. Bg6 {[%clk 0:00:06.3]} 39... c5 {[%clk 0:00:14.7]}
40. dxc5 {[%clk 0:00:05.5]} 40... bxc5 {[%clk 0:00:15.6]} 41. Rb1+ {[%clk
0:00:05.8]} 41... Kc6 {[%clk 0:00:16.1]} 42. Rf1 {[%clk 0:00:06.5]} 42... Kd7
{[%clk 0:00:14]} 43. Rxf6 {[%clk 0:00:06.8]} 43... Kxe7 {[%clk 0:00:14.7]} 44.
Rf4 {[%clk 0:00:07.1]} 44... c4 {[%clk 0:00:14.3]} 45. Nf7 {[%clk 0:00:06.6]}
45... Nxf7 {[%clk 0:00:13.7]} 46. Rxf7+ {[%clk 0:00:07.5]} 46... Kd6 {[%clk
0:00:14.2]} 47. Rxa7 {[%clk 0:00:07.3]} 47... c3 {[%clk 0:00:14.1]} 48. Ra6+
{[%clk 0:00:07.6]} 48... Rc6 {[%clk 0:00:13.5]} 49. Rxc6+ {[%clk 0:00:07.1]}
49... Kxc6 {[%clk 0:00:14.4]} 50. Kf2 {[%clk 0:00:07.6]} 50... Kc5 {[%clk
0:00:14.9]} 51. Ke1 {[%clk 0:00:07.5]} 51... Kb4 {[%clk 0:00:15.1]} 52. Bc2
{[%clk 0:00:06.9]} 52... Ka3 {[%clk 0:00:15]} 53. Bb3 {[%clk 0:00:07.6]} 53...
Kb2 {[%clk 0:00:15.4]} 54. Kf2 {[%clk 0:00:07.3]} 54... c2 {[%clk 0:00:13.6]}
55. Bxc2 {[%clk 0:00:07.8]} 55... Kxc2 {[%clk 0:00:14.5]} 56. a4 {[%clk
0:00:08.3]} 56... Bc8 {[%clk 0:00:10]} 57. a5 {[%clk 0:00:08.4]} 57... Kb3
{[%clk 0:00:10.3]} 58. Kf3 {[%clk 0:00:08.3]} 58... Kb4 {[%clk 0:00:10.7]} 59.
Kf4 {[%clk 0:00:08.3]} 59... Kxa5 {[%clk 0:00:10.2]} 60. Ke5 {[%clk 0:00:08.3]}
60... Bb7 {[%clk 0:00:09.8]} 61. Kf4 {[%clk 0:00:07.2]} 61... Kb5 {[%clk
0:00:09.7]} 62. g4 {[%clk 0:00:07.5]} 62... hxg4 {[%clk 0:00:09.6]} 63. Kxg4
{[%clk 0:00:08]} 63... Bc8+ {[%clk 0:00:09]} 64. Kf4 {[%clk 0:00:07.9]} 64...
Kc5 {[%clk 0:00:09.3]} 65. h5 {[%clk 0:00:08.4]} 65... Ba6 {[%clk 0:00:08.7]}
66. h6 {[%clk 0:00:08.9]} 66... Bd3 {[%clk 0:00:09.1]} 67. Ke5 {[%clk
0:00:09.4]} 67... Kc4 {[%clk 0:00:08.2]} 68. Ke6 {[%clk 0:00:08.9]} 68... Bh7
{[%clk 0:00:07.7]} 69. Ke5 {[%clk 0:00:09.1]} 69... Kc5 {[%clk 0:00:07.9]} 70.
Ke6 {[%clk 0:00:09.6]} 70... Be4 {[%clk 0:00:07]} 71. Ke5 {[%clk 0:00:10.1]}
71... Kc6 {[%clk 0:00:06.5]} 72. Ke6 {[%clk 0:00:10.5]} 72... Kc7 {[%clk
0:00:06.6]} 73. h7 {[%clk 0:00:10.7]} 73... Bxh7 {[%clk 0:00:03.7]} 74. Kxd5
{[%clk 0:00:11.3]} 74... Kd7 {[%clk 0:00:04.2]} 75. Ke5 {[%clk 0:00:12.2]} 75...
Bg8 {[%clk 0:00:04.8]} 76. Kf4 {[%clk 0:00:12.7]} 76... Ke8 {[%clk 0:00:05.7]}
77. e4 {[%clk 0:00:13.5]} 77... Ba2 {[%clk 0:00:06.4]} 78. e5 {[%clk 0:00:14.4]}
78... Be6 {[%clk 0:00:06.9]} 79. Kg5 {[%clk 0:00:15.1]} 79... Ke7 {[%clk
0:00:07.5]} 80. Kf4 {[%clk 0:00:15.5]} 80... Bd5 {[%clk 0:00:08.1]} 81. e6
{[%clk 0:00:15.6]} 81... Bxe6 {[%clk 0:00:09]} 1/2-1/2